Cogmind - Beta 10.1 @@@ ROGUE MODE // 2020.10.21 @ 15:50:05 Player: Cracklepappy Result: Self-destructed Performance ------------- Evolutions (3) 1500 Regions Visited (10) 2000 Robots Destroyed (296) 1480 Value Destroyed (8415) 8415 Prototype IDs (42) 840 Alien Tech Used (0) 0 Bonus (1141) 1141 TOTAL SCORE: 15376 Bonus ------- High Alert Combat Kills 1017 Follower Combat Kills 217 Aligned with FarCom 300 Friendly Fire -393 Cogmind --------- Core Integrity 294/700 Matter 233/300 Energy 150/150 System Corruption 6% Temperature Cool (0) Movement Treading (195) Ox2 Location -7/Lower Caves Parts ------- > --- POWER (1) -------- Micro Nuclear Core > --- PROPULSION (3) --- Light Treads Light Treads Advanced Treads > --- UTILITY (7) ------ High-capacity Storage Unit High-capacity Storage Unit Humpback Long-range Sensor Array Advanced Signal Interpreter Medium Insulated Plating > --- WEAPON (2) ------- Flak Gun Flak Gun > --- INVENTORY (40) --- Micro Nuclear Core Cold Fusion Reactor Reinforced Fission Core Wheel Wheel Large Storage Unit Large Storage Unit Humpback Compact Matter Pod (150) Improved Salvage Targeting Computer Target Analyzer Armor Integrity Analyzer Hardened Heavy Armor Plating Hardened Heavy Armor Plating Advanced Component Analysis Suite Long-range Tractor Beam Advanced Recalibrator Improved Field Recycling Unit (0) AS-neutralizer No. 17b Improved EM Pulse Cannon Heavy Ion Cannon Gauss Rifle Gauss Rifle Gauss Rifle Flak Gun Flak Gun Precision Assault Rifle Proton Missile Launcher Remote Datajack Plasma Cutter Power Maul Peak State ------------ > --- POWER ------------ Heavy Deuterium Engine > --- PROPULSION ------- Light Treads Advanced Treads Medium Treads > --- UTILITY ---------- High-capacity Storage Unit High-capacity Storage Unit High-capacity Storage Unit Humpback Improved Target Analyzer Hacking Suite > --- WEAPON ----------- Enhanced Autogun Enhanced Autogun > --- INVENTORY -------- Micro Nuclear Core Micro Nuclear Core Cold Fusion Reactor Reinforced Fission Core Advanced Treads Advanced Treads Advanced Treads Advanced Treads Advanced Treads Aerolev Unit Combat Airjet Combat Airjet Gravmag Array Large Storage Unit Large Storage Unit High-capacity Storage Unit Humpback Humpback Compact Matter Pod Advanced Launcher Guidance Computer Advanced Core Analyzer Advanced Weapon Cycler Medium Armor Plating Improved Light Armor Plating Improved Light Armor Plating Improved Light Armor Plating Hacking Suite System Shield Advanced Component Analysis Suite Long-range Tractor Beam Advanced Recalibrator AS-neutralizer No. 17b Precision Beam Rifle Heavy Ion Cannon Plasma Cannon Heavy Assault Rifle Improved Assault Rifle Improved Assault Rifle Minigun Gauss Rifle 8R-AWN's Boregun Rocket Launcher Remote Datajack Plasma Cutter Power Maul [Rating: 52] Favorites ----------- Power Improved Ion Engine Engine Improved Ion Engine Power Core Micro Nuclear Core Reactor Cold Fusion Reactor Propulsion Light Treads Treads Light Treads Leg Advanced Myomer Leg Wheel Wheel Hover Unit Aerolev Unit Utility High-capacity Storage Unit Device Long-range Sensor Array Storage High-capacity Storage Unit Processor Advanced Signal Interpreter Hackware System Shield Protection Light Armor Plating Weapon Enhanced Autogun Energy Gun AWS/EX-DEC Ballistic Gun Enhanced Autogun Ballistic Cannon Improved Light Cannon Launcher Grenade Launcher Special Weapon Remote Datajack Impact Weapon Power Maul Slashing Weapon Katana Build | -11 -10 -10 -9 -9 -9 -8 -8 -8 -7 -7 ------- Run | Scr Mat Min Mat Min Exi Min Mat Sto Fac Low Slots Evolved 6 | . . . 2 . . . 2 . 2 . Power . | . . . . . . . . . . . Propulsion 1 | . . . . . . . . . 1 . Utility 5 | . . . 2 . . . 2 . 1 . Weapon . | . . . . . . . . . . . Parts Attached 198 | 7 7 8 27 9 24 . 18 37 50 11 Power 25 | 1 1 2 3 1 4 . 2 7 4 . Engine 18 | 1 1 1 3 1 4 . 2 4 1 . Core 6 | . . 1 . . . . . 2 3 . Reactor 1 | . . . . . . . . 1 . . Propulsion 44 | 2 1 2 5 4 3 . 5 7 14 1 Treads 40 | 1 1 2 5 4 1 . 5 6 14 1 Leg 1 | . . . . . 1 . . . . . Wheel 2 | 1 . . . . 1 . . . . . Hover 1 | . . . . . . . . 1 . . Flight . | . . . . . . . . . . . Utility 51 | 2 2 . 10 . 10 . 4 6 13 4 Device 4 | 1 . . . . 1 . . . . 2 Storage 20 | 1 2 . 5 . 5 . 2 3 2 . Processor 2 | . . . . . . . . 1 1 . Hackware 3 | . . . . . . . . . 3 . Protection 22 | . . . 5 . 4 . 2 2 7 2 Artifact . | . . . . . . . . . . . Weapon 78 | 2 3 4 9 4 7 . 7 17 19 6 Energy Gun 5 | . . . . . 1 . 1 3 . . Energy Cannon . | . . . . . . . . . . . Ballistic Gun 44 | 2 2 2 6 1 3 . 4 10 11 3 Ballistic Cannon 2 | . . . . 1 1 . . . . . Launcher 17 | . 1 2 3 1 2 . 2 2 3 1 Special Weapon 1 | . . . . . . . . . . 1 Impact Weapon 6 | . . . . . . . . . 5 1 Slashing Weapon 3 | . . . . 1 . . . 2 . . Piercing Weapon . | . . . . . . . . . . . Special Melee Weapon . | . . . . . . . . . . . Unidentified Prototypes 12 | . . . . . 5 . . 6 1 . Parts Lost 48 | . 2 6 4 5 4 . 4 12 9 2 Power 6 | . . 2 . 1 1 . . 2 . . Propulsion 17 | . . 2 1 3 2 . 1 3 4 1 Utility 12 | . . . 2 . 1 . 1 4 4 . Weapon 13 | . 2 2 1 1 . . 2 3 1 1 Highest Loss Streak 4 | . 1 3 2 3 4 . 1 2 2 2 Average Slot Usage (%) 90 | . 99 97 98 99 84 77 84 86 87 91 Engine 6 | . 14 6 11 11 10 11 9 3 1 . Core 2 | . . 7 . . . . . 2 5 7 Treads 20 | . 20 27 21 21 16 11 17 17 22 22 Storage 28 | . 22 28 32 33 24 33 35 36 24 23 Processor 1 | . . . . . . . . 2 4 7 Hackware 1 | . . . . . . . . . 5 . Protection 6 | . . . 10 11 9 . 8 5 6 6 Ballistic Gun 13 | . 26 16 21 11 3 . 10 17 13 14 Ballistic Cannon 1 | . . . . 8 5 . . . . . Naked Turns . | . . . . . . . . . . . Heaviest Build 219 | 13 45 45 99 99 161 161 192 219 200 178 Greatest Support 72 | 10 40 40 40 40 40 10 44 44 72 64 Greatest Overweight (x) 16 | 1 4 1 3 4 16 16 16 5 4 2 Average Overweight (x) 2 | . 2 . 1 2 3 16 5 4 2 2 Largest Inventory Capacity 60 | 6 14 14 26 26 40 40 48 56 60 40 Average Capacity 34 | 5 12 14 21 26 32 40 46 48 41 40 Most Carried 48 | 6 14 14 26 26 40 40 48 48 48 40 Average Carried 33 | 3 12 12 21 24 29 39 45 46 41 39 Final Capacity 48 | 6 14 14 26 26 40 40 48 48 40 40 Final Carried 48 | 6 13 12 26 25 40 40 48 48 40 38 Class Distribution -------------------- 87% | Hauler-Mutant 12% | Mutant Dominant Class ---------------- Mutant | -10/Materials Mutant | -10/Mines Hauler-Mutant | -9/Materials Hauler-Mutant | -9/Mines Hauler-Mutant | -9/Exiles Hauler-Mutant | -8/Mines Hauler-Mutant | -8/Materials Hauler-Mutant | -8/Storage Hauler-Mutant | -7/Factory Hauler-Mutant | -7/Lower Caves Resources | -11 -10 -10 -9 -9 -9 -8 -8 -8 -7 -7 ----------- Run | Scr Mat Min Mat Min Exi Min Mat Sto Fac Low Matter Collected 7403 | 286 551 311 1106 286 506 105 475 1543 1814 420 Remotely . | . . . . . . . . . . . Salvage Created 10870 | 118 744 511 1794 567 452 110 1333 2218 2570 453 Parts 639 | 5 48 30 124 33 66 5 81 124 113 10 Haulers Intercepted 12 | . 2 . 4 . . . 1 5 . . Recyclers Shooed 6 | . 1 . 2 . . 1 . 2 . . Parts Field Recycled . | . . . . . . . . . . . Retrieved Matter . | . . . . . . . . . . . Parts Self-Destructed 10 | . . . . . . . . . . 10 Prevented . | . . . . . . . . . . . Kills | -11 -10 -10 -9 -9 -9 -8 -8 -8 -7 -7 ------- Run | Scr Mat Min Mat Min Exi Min Mat Sto Fac Low Combat Hostiles Destroyed 225 | . 15 18 38 15 5 4 31 45 47 7 Guns 166 | . 15 5 30 3 1 3 23 41 38 7 Cannons 6 | . . . . 6 . . . . . . AOE 50 | . . 13 8 6 4 . 6 4 9 . Classes Destroyed 19 | 2 5 1 4 1 2 1 . 1 2 . Worker 17 | . 2 4 6 . . . 1 2 2 . Builder 4 | . . . 3 . . . 1 . . . Tunneler 2 | 1 . 1 . . . . . . . . Hauler 12 | . 2 . 4 . . . 1 5 . . Recycler 9 | 1 1 3 1 . . . 2 1 . . Mechanic 2 | . . . . . . . . . 2 . Operator 1 | . . . 1 . . . . . . . Turret 1 | . . . . . 1 . . . . . Watcher 10 | . 1 . 3 . . . 2 1 3 . Swarmer 54 | . 5 3 7 4 . 3 14 9 5 4 Grunt 108 | . 10 6 24 10 1 . 11 20 24 2 Brawler 7 | . . . 2 . . . . 2 3 . Duelist 4 | . . . . 1 . . . 1 2 . Protector 3 | . . . . . . . . 2 1 . Sentry 26 | . . . 5 . . . 6 9 5 1 Hunter 3 | . . . . . . 1 . 2 . . Programmer 7 | . . . . . . . . . 7 . Zionite 8 | . . . . . 8 . . . . . Assembled 13 | . . 9 . . 4 . . . . . Thug 1 | . . . . . . . . 1 . . Best Kill Streak 11 | 2 3 4 11 4 10 3 5 6 6 4 Combat Bots Only 8 | . 3 3 8 4 4 3 5 6 6 4 Max Kills in Single Turn 4 | 1 2 4 2 2 3 1 4 3 3 1 Gunslinging 1 | . . 1 . . . . . . 1 . Exploded 3 | . . 1 2 2 3 . 3 3 2 . Melee . | . . . . . . . . . . . Uniques/NPCs Destroyed 4 | . . . . . 4 . . . . . 8R-AWN (-9/Exiles) EX-HEX (-9/Exiles) EX-BIN (-9/Exiles) EX-DEC (-9/Exiles) Combat | -11 -10 -10 -9 -9 -9 -8 -8 -8 -7 -7 -------- Run | Scr Mat Min Mat Min Exi Min Mat Sto Fac Low Damage Taken 12725 | . 625 497 1933 505 597 98 1029 3198 3655 588 Core 1367 | . 110 49 225 50 80 . 85 362 297 109 Absorbed by Shields 15 | . . . . . . . . . 15 . Core Remaining (%) 41 | 100 . 36 . . . 11 . 18 . . Volleys Fired 718 | 4 71 31 133 28 59 . 35 179 151 27 Largest 2 | 2 2 2 2 2 1 . 2 2 2 2 Hottest 62 | 40 40 50 53 62 33 . 46 58 56 56 Shots Fired 1445 | 8 141 53 259 50 102 14 126 352 291 49 Gun 1361 | 8 140 35 248 23 94 14 121 348 283 47 Cannon 21 | . . . . 21 . . . . . . Launcher 62 | . 1 18 11 6 8 . 5 4 8 1 Special 1 | . . . . . . . . . . 1 Kinetic 1306 | 8 140 35 248 44 94 . 59 348 283 47 Thermal . | . . . . . . . . . . . Explosive 53 | . 1 18 11 6 8 . 5 4 . . Electromagnetic 85 | . . . . . . 14 62 . 8 1 Robot Hit Streak 28 | 3 13 12 28 18 23 6 14 14 22 19 Robot Miss Streak 9 | 1 7 4 3 3 5 5 5 4 9 9 Penetration Max 1 | . . . . . 1 . . 1 . . Secondary Targets 16 | . 1 1 3 . . . . 4 5 2 Max Gunslinging Chain 1 | . 1 1 1 . . . . 1 1 1 Autonomous 119 | . . . . . 43 14 62 . . . Shots Hit Robots 1068 | 5 85 42 179 42 72 11 105 238 242 47 Core Hits 632 | 3 40 40 95 27 33 5 56 104 193 36 Critical Hits 23 | . 1 . 1 . 16 . 3 2 . . Critical Kills 8 | . . . . . 7 . 1 . . . Critical Parts Destroyed 12 | . 1 . 1 . 7 . 1 2 . . Melee Attacks 44 | . . . . 15 2 . . 3 20 4 Impact 24 | . . . . . . . . . 20 4 Slashing 20 | . . . . 15 2 . . 3 . . Piercing . | . . . . . . . . . . . Sneak Attacks 2 | . . . . . 2 . . . . . Combat Hostiles . | . . . . . . . . . . . Follow-up Attacks . | . . . . . . . . . . . Damage Inflicted 24102 | 52 984 1359 3313 1697 2157 218 2746 4412 6078 1086 Guns 16456 | 52 964 291 2172 277 1669 213 2129 3885 4157 647 Cannons 338 | . . . . 338 . . . . . . Explosions 5850 | . . 962 1126 494 320 . 571 510 1849 18 Melee 1249 | . . . . 588 168 . . . 72 421 Ramming 209 | . 20 106 15 . . 5 46 17 . . Kinetic 15202 | 52 964 291 2172 615 1669 . 750 3885 4157 647 Thermal 1220 | . . . . . . . . . 1220 . Explosive 3983 | . . 962 1126 494 320 . 571 510 . . Electromagnetic 2239 | . . . . . . 213 1379 . 629 18 Impact 493 | . . . . . . . . . 72 421 Slashing 756 | . . . . 588 168 . . . . . Piercing . | . . . . . . . . . . . Highest Corruption 6 | . 1 1 . . . . . 2 6 6 Average Corruption 3 | . 1 1 . . . . . 2 3 6 Corruption Purged . | . . . . . . . . . . . Effects 154 | . 6 6 . . . . . 9 102 31 Message Errors 43 | . 1 3 . . . . . 3 26 10 Matter Fused 21 | . . . . . . . . . 16 5 Heat Flow Errors 21 | . . . . . . . . 2 12 7 Energy Discharges 26 | . 1 1 . . . . . 2 18 4 Data Loss (minor) 19 | . 2 2 . . . . . . 12 3 Data Loss (major) 1 | . . . . . . . . . 1 . Misfires 2 | . . . . . . . . . 2 . Targeting Errors 20 | . 2 . . . . . . 2 14 2 Weapon Failures 1 | . . . . . . . . . 1 . Overload Shots . | . . . . . . . . . . . Overflow Damage 960 | . . 38 21 174 89 . 7 25 315 291 Projectiles 11 | . . . . 11 . . . . . . Explosions 438 | . . 38 21 26 34 . 7 25 287 . Melee 511 | . . . . 137 55 . . . 28 291 Knockbacks 7 | . . . . 5 . . 1 . 1 . Impact 2 | . . . . . . . 1 . 1 . Kinetic 3 | . . . . 3 . . . . . . Secondary 2 | . . . . 2 . . . . . . Self-Inflicted Damage 526 | . 6 182 143 48 92 2 . . 53 . Shots 22 | . . 8 6 1 3 . . . 4 . Rammed 20 | . 4 8 2 . . 1 4 1 . . Targets Rammed 24 | . 4 9 2 . . 1 6 2 . . Kicked . | . . . . . . . . . . . Crushed 4 | . . 1 . . . . 2 1 . . Highest Temperature 273 | . 18 42 67 78 . . 9 273 257 266 Average Temperature 50 | . 7 10 16 30 . . 8 39 66 108 Received Heat Transfer 4083 | . 285 114 723 168 . . 297 1314 1047 135 Effects 1 | . . . . . . . . . . 1 Energy Bleed 1 | . . . . . . . . . . 1 Siege Activations . | . . . . . . . . . . . Robots Corrupted 3 | . . . . . . 1 2 . . . Combat Hostiles 3 | . . . . . . 1 2 . . . Parts Fried 22 | . . . . . . 2 12 . 7 1 Impact Corruptions 13 | . . . . . . . . . 2 11 Robots Melted . | . . . . . . . . . . . Combat Hostiles . | . . . . . . . . . . . Parts Melted . | . . . . . . . . . . . Heat Transferred 800 | . . . . . . . . . 800 . Parts Sabotaged . | . . . . . . . . . . . Parts Stolen 3 | . . . . . . . . . . 3 Parts Stripped . | . . . . . . . . . . . Power Chain Reactions . | . . . . . . . . . . . Missiles Intercepted . | . . . . . . . . . . . Alert | -11 -10 -10 -9 -9 -9 -8 -8 -8 -7 -7 ------- Run | Scr Mat Min Mat Min Exi Min Mat Sto Fac Low Peak Influence 1314 | 10 333 219 746 470 . 130 611 629 1314 . Initial 290 | . 6 99 39 290 . . 50 181 212 . Average 338 | 4 192 68 367 300 . 95 366 272 456 . Maximum Alert Level 4 | . 1 1 3 2 . . 2 2 4 . Low Security (%) 39 | 100 64 96 39 2 . 100 27 33 37 . Level 1 27 | . 35 3 14 90 . . 12 52 11 . Level 2 19 | . . . 42 6 . . 59 13 13 . Level 3 9 | . . . 3 . . . . . 26 . Level 4 3 | . . . . . . . . . 9 . Level 5 . | . . . . . . . . . . . High Security . | . . . . . . . . . . . Max Security . | . . . . . . . . . . . Squads Dispatched 35 | . 3 . 7 . . . 2 8 15 . Investigation 6 | . 2 . 2 . . . 1 1 . . Extermination 6 | . . . . . . . . . 6 . Reinforcement 12 | . 1 . 4 . . . . 5 2 . Assault 7 | . . . 1 . . . 1 2 3 . Garrison 4 | . . . . . . . . . 4 . Intercept . | . . . . . . . . . . . Construction Impeded 1 | . . . . . . . . . 1 . Haulers Reinforced . | . . . . . . . . . . . Stealth | -11 -10 -10 -9 -9 -9 -8 -8 -8 -7 -7 --------- Run | Scr Mat Min Mat Min Exi Min Mat Sto Fac Low Distress Signals 12 | . . 1 7 . . . 1 3 . . Communications Jammed . | . . . . . . . . . . . Distress Signals . | . . . . . . . . . . . Times Spotted 357 | . 33 18 65 19 17 5 43 80 67 10 Peak Tracking Total 9 | . 4 2 7 4 9 4 5 9 7 4 Tactical Retreats 32 | . 3 . 5 2 5 . 4 8 5 . Traps | -11 -10 -10 -9 -9 -9 -8 -8 -8 -7 -7 ------- Run | Scr Mat Min Mat Min Exi Min Mat Sto Fac Low Traps Triggered 13 | . . . . . . . . 7 6 . Indirectly . | . . . . . . . . . . . Trap Hack Attempts . | . . . . . . . . . . . Triggered . | . . . . . . . . . . . Disarmed . | . . . . . . . . . . . Reprogrammed . | . . . . . . . . . . . Reused . | . . . . . . . . . . . Traps Extracted . | . . . . . . . . . . . Installed . | . . . . . . . . . . . Triggered . | . . . . . . . . . . . Exploded 3 | . . . . . 3 . . . . . Machines | -11 -10 -10 -9 -9 -9 -8 -8 -8 -7 -7 ---------- Run | Scr Mat Min Mat Min Exi Min Mat Sto Fac Low Machines Disabled 39 | . . 2 . 2 11 . . 4 20 . Max in Single Turn 11 | . . 1 . 2 2 . . 1 11 . Garrison Access 2 | . . . . . . . . . 2 . Machines Sabotaged . | . . . . . . . . . . . Garrisons Compromised . | . . . . . . . . . . . Overloaded Fab Kills . | . . . . . . . . . . . Fab Network Shutdowns . | . . . . . . . . . . . Hacking | -11 -10 -10 -9 -9 -9 -8 -8 -8 -7 -7 --------- Run | Scr Mat Min Mat Min Exi Min Mat Sto Fac Low Machines Accessed 46 | . 7 . 10 . 2 . 6 10 11 . Terminals 33 | . 5 . 8 . . . 4 9 7 . Fabricators 1 | . . . . . . . . . 1 . Repair Stations 1 | . . . . . . . . 1 . . Recycling Units 4 | . 2 . 1 . . . 1 . . . Scanalyzers 3 | . . . 1 . . . 1 . 1 . Garrison Access 2 | . . . . . . . . . 2 . Total Hacks 138 | . 18 . 25 . 2 . 28 40 25 . Successful 75 | . 10 . 13 . 2 . 16 21 13 . Failed 63 | . 8 . 12 . . . 12 19 12 . Catastrophic 16 | . . . 3 . . . 1 6 6 . Database Lockouts . | . . . . . . . . . . . Manual 68 | . 8 . 11 . 1 . 7 31 10 . Terminals 104 | . 15 . 20 . . . 15 37 17 . Fabricators 2 | . . . . . . . . . 2 . Repair Stations 3 | . . . . . . . . 3 . . Recycling Units 6 | . 3 . 1 . . . 2 . . . Scanalyzers 17 | . . . 4 . . . 11 . 2 . Garrison Access 4 | . . . . . . . . . 4 . Terminal Hacks 37 | . 8 . 7 . 2 . 5 11 4 . Record 1 | . . . . . 1 . . . . . Part Schematic 6 | . 1 . 1 . . . . 3 1 . Robot Schematic 1 | . 1 . . . . . . . . . Robot Analysis 3 | . . . 1 . . . . 1 1 . Prototype ID Bank 4 | . 3 . . . . . 1 . . . Open Door 3 | . . . . . . . . 3 . . Branch Access Points 3 | . . . 1 . . . 1 . 1 . Alert Level 1 | . . . . . . . . . 1 . Unreport Threat 4 | . . . . . . . . 4 . . Locate Traps 5 | . 2 . 1 . . . 2 . . . Hauler Manifests 4 | . 1 . 2 . . . 1 . . . Zone Layout 1 | . . . 1 . . . . . . . EX-Prototype ID Bank 1 | . . . . . 1 . . . . . Fabricator Hacks 2 | . . . . . . . . . 2 . Load Schematic 1 | . . . . . . . . . 1 . Build 1 | . . . . . . . . . 1 . Repair Station Hacks 2 | . . . . . . . . 2 . . Scan Component 1 | . . . . . . . . 1 . . Repair 1 | . . . . . . . . 1 . . Recycling Unit Hacks 1 | . . . . . . . 1 . . . Retrieve Components 1 | . . . . . . . 1 . . . Scanalyzer 16 | . . . 4 . . . 10 . 2 . Insert Component 7 | . . . 2 . . . 4 . 1 . Analyze 9 | . . . 2 . . . 6 . 1 . Garrison Access Hacks 2 | . . . . . . . . . 2 . Seal Access 2 | . . . . . . . . . 2 . Unauthorized Hacks 15 | . 2 . 2 . . . . 8 3 . Terminals 12 | . . . 1 . . . . 8 3 . Botnet 11 | . . . . . . . . 8 3 . Operators 1 | . . . 1 . . . . . . . Fabricators . | . . . . . . . . . . . Repair Stations . | . . . . . . . . . . . Recycling Units 3 | . 2 . 1 . . . . . . . Tunnel 3 | . 2 . 1 . . . . . . . Scanalyzers . | . . . . . . . . . . . Garrison Access . | . . . . . . . . . . . Data Cores Recovered . | . . . . . . . . . . . Used . | . . . . . . . . . . . Hacking Detections 39 | . 6 . 9 . . . 6 9 9 . Full Trace Events 7 | . 1 . 3 . . . 2 1 . . Feedback Events . | . . . . . . . . . . . Feedback Blocked . | . . . . . . . . . . . Robot Schematics Acquired 1 | . 1 . . . . . . . . . Robots Built . | . . . . . . . . . . . Matter . | . . . . . . . . . . . Time . | . . . . . . . . . . . Total Robot Build Rating . | . . . . . . . . . . . Part Schematics Acquired 12 | . 1 . 3 . . . 3 3 2 . Parts Built 2 | . . . . . . . . . 2 . Matter 146 | . . . . . . . . . 146 . Time 73 | . . . . . . . . . 73 . Total Part Build Rating 6 | . . . . . . . . . 6 . Parts Repaired 1 | . . . . . . . . 1 . . Time 78 | . . . . . . . . 78 . . Parts Recycled . | . . . . . . . . . . . Recycled Matter . | . . . . . . . . . . . Retrieved Matter . | . . . . . . . . . . . Retrieved Components 9 | . . . . . . . 9 . . . Parts Scanalyzed 7 | . . . 2 . . . 4 . 1 . Part Schematics Acquired 6 | . . . 2 . . . 3 . 1 . Parts Damaged 1 | . . . . . . . 1 . . . Bothacking | -11 -10 -10 -9 -9 -9 -8 -8 -8 -7 -7 ------------ Run | Scr Mat Min Mat Min Exi Min Mat Sto Fac Low Used RIF Installer . | . . . . . . . . . . . Robots Hacked 1 | . . . . . . . . . . 1 Non-combat 1 | . . . . . . . . . . 1 Combat . | . . . . . . . . . . . Robot Hacks Applied 1 | . . . . . . . . . . 1 parse_system 1 | . . . . . . . . . . 1 Relay Couplers Released 4 | . . . . . . . . . 4 . Programmers 4 | . . . . . . . . . 4 . Robots Rewired . | . . . . . . . . . . . Allies Hacked . | . . . . . . . . . . . Hacks Repelled . | . . . . . . . . . . . Allies | -11 -10 -10 -9 -9 -9 -8 -8 -8 -7 -7 -------- Run | Scr Mat Min Mat Min Exi Min Mat Sto Fac Low Total Allies 5 | . . . . 3 . . . 2 . . Largest Group 3 | . . . . 3 2 . . 2 . . Highest-Rated Group 62 | . . . . 40 32 . . 62 . . Highest-Rated Ally 31 | . . . . 16 16 . . 31 . . Total Orders . | . . . . . . . . . . . Ally Attacks 49 | . . . . 11 . . . 38 . . Total Damage 1566 | . . . . 135 . . . 1431 . . Kills 12 | . . . . 4 . . . 8 . . Allies Corrupted . | . . . . . . . . . . . Allies Melted . | . . . . . . . . . . . Turrets Deployed 1 | . . . . . . . . 1 . . Intel | -11 -10 -10 -9 -9 -9 -8 -8 -8 -7 -7 ------- Run | Scr Mat Min Mat Min Exi Min Mat Sto Fac Low Robot Analysis Total 3 | . . . 1 . . . . 1 1 . Derelict Logs Recovered 4 | . . 2 . 2 . . . . . . Drone Launches . | . . . . . . . . . . . Drone Recoveries . | . . . . . . . . . . . Exploration | -11 -10 -10 -9 -9 -9 -8 -8 -8 -7 -7 ------------- Run | Scr Mat Min Mat Min Exi Min Mat Sto Fac Low Turns Passed 18630 | 79 1196 963 1932 1417 2661 80 1608 2494 5069 1131 Spaces Moved 7676 | 59 667 475 695 635 1062 32 441 775 2299 536 Core 1 | 1 . . . . . . . . . . Treads 6968 | . 258 475 695 635 895 . 400 775 2299 536 Legs 128 | . . . . . 128 . . . . . Wheels 579 | 58 409 . . . 39 32 41 . . . Hover . | . . . . . . . . . . . Flight . | . . . . . . . . . . . Fastest Speed 50 | 50 90 160 180 200 180 240 205 225 185 190 Average Speed 198 | 86 142 179 189 200 228 240 238 230 191 190 Slowest Speed 320 | 90 180 180 220 240 320 240 240 257 237 195 Overloaded Moves . | . . . . . . . . . . . Propulsion Burnouts . | . . . . . . . . . . . Robots Hopped 1 | . . . . . . . . 1 . . Cave-ins Triggered . | . . . . . . . . . . . Exploration Rate (%) 64 | 4 98 79 74 99 90 9 45 94 52 67 Regions Visited 10 Branch Regions 6 Pre-discovered Areas 4 | . 2 . 1 . 1 . . . . . Known Exits Taken 3 | . . . 1 . . . 1 . 1 . Unknown Exits Taken 7 | 1 1 1 . 1 1 1 . 1 . . Scrap Searched 9 | . . 1 . 1 . . . . . 7 Spaces Dug 46 | . . . . . 31 . . . 15 . Terrain Destroyed 598 | . 8 140 59 58 114 . 30 42 147 . Melee 15 | . . . . . . . . . 15 . Projectile 41 | . . . . . 39 . . 2 . . AOE 542 | . 8 140 59 58 75 . 30 40 132 . Terrain Rammed . | . . . . . . . . . . . Walls Destroyed . | . . . . . . . . . . . Machines Disabled . | . . . . . . . . . . . Actions | -11 -10 -10 -9 -9 -9 -8 -8 -8 -7 -7 --------- Run | Scr Mat Min Mat Min Exi Min Mat Sto Fac Low Total 9868 | 76 781 530 1064 705 1250 35 935 1194 2708 590 Wait 816 | . 10 2 155 15 11 1 402 99 112 9 Move 7664 | 58 666 474 694 634 1061 31 440 772 2298 536 Hop 1 | . . . . . . . . 1 . . Pick Up 229 | 7 15 5 30 4 53 1 21 57 35 1 Fast Attach 40 | 6 1 1 2 1 8 . 3 8 10 . Attach 65 | 1 2 5 5 5 10 . 6 14 12 5 Detach 4 | . . . . . 1 . . 2 1 . Swap 93 | . 4 2 20 3 6 . 9 15 28 6 Drop 160 | . 8 1 23 . 39 1 13 34 39 2 Fire 718 | 4 71 31 133 28 59 . 35 179 151 27 Melee 44 | . . . . 15 2 . . 3 20 4 Ram 4 | . 3 . . . . 1 . . . . Kick . | . . . . . . . . . . . Crush 20 | . 1 9 2 . . . 6 2 . . Escape Stasis 10 | . . . . . . . . 8 2 . Rewire . | . . . . . . . . . . . Trap . | . . . . . . . . . . . Miscellaneous . | . . . . . . . . . . . Route ------- -11/Scrapyard -10/Materials (discovered 5 exits: *Mat x3 / [*Min x2]) -10/Mines (discovered 2 exits: *Mat x2) -9/Materials (discovered 3 exits: *Mat x2 / *Min) -9/Mines (discovered 3 exits: *Mat x2 / *Exi) -9/Exiles -8/Mines -8/Materials (discovered 4 exits: *Fac x2 / *Sto x2) -8/Storage -7/Factory (discovered 6 exits: *Fac x4 / *Low x2) -7/Lower Caves History --------- Turn | Location | Event 14 | -11/Scrapyard | Discovered new exit (range 15) 80 | -11/Scrapyard | Entered Materials 80 | -10/Materials | Discovered new exit (range 15) 318 | -10/Materials | Build established: Mutant 402 | -10/Materials | Discovered new exit (range 15) 835 | -10/Materials | Discovered new exit (range 16) 1200 | -10/Materials | Discovered new exit (range 9) 1256 | -10/Materials | Discovered new exit (range 12) 1276 | -10/Materials | Entered Mines 1387 | -10/Mines | Assembled infested the area 1626 | -10/Mines | Discovered new exit (range 16) 1638 | -10/Mines | Core integrity fell below 50% 1847 | -10/Mines | Lost 3 parts (2n1w) 1958 | -10/Mines | Learned Materials trap positions 1960 | -10/Mines | Learned Materials security intel 2146 | -10/Mines | Discovered new exit (range 12) 2239 | -10/Mines | Entered Materials 2239 | -9/Materials | Evolved 2 slots: Utility x2 2240 | -9/Materials | Loaded intel: 15 trap records 2403 | -9/Materials | Discovered new exit (range 10) 2605 | -9/Materials | Build established: Hauler-Mutant 3332 | -9/Materials | Discovered new exit (range 8) 3337 | -9/Materials | Destroyed 8 combat bots 3439 | -9/Materials | First assault squad dispatched 3674 | -9/Materials | Discovered new exit (range 16) 3968 | -9/Materials | Identified exit to Mines 4058 | -9/Materials | Core integrity fell below 50% 4171 | -9/Materials | Entered Mines 4231 | -9/Mines | Discovered new exit (range 7) 4528 | -9/Mines | Learned location of 1 exit from Proximity Caves 4696 | -9/Mines | Lost 3 parts (1p2n) 5048 | -9/Mines | Assisted by bots powering up and referring to "LRC-V3" 5326 | -9/Mines | Excavation squad dispatched 5326 | -9/Mines | A large section of the Mines collapsed 5446 | -9/Mines | Discovered new exit (range 10) 5578 | -9/Mines | Deemed a non-threat by the Exiles lab entrance 5580 | -9/Mines | Discovered new exit (range 5) 5588 | -9/Mines | Entered Exiles 5588 | -9/Exiles | Accompanied by 2 allies 5642 | -9/Exiles | Met 8R-AWN 5670 | -9/Exiles | Met EX-HEX 5791 | -9/Exiles | Met EX-DEC 5829 | -9/Exiles | Learned location of Zion (-6) 6020 | -9/Exiles | Discovered new exit (range 14) 6404 | -9/Exiles | Met EX-BIN 6516 | -9/Exiles | Aligned with FarCom system 6519 | -9/Exiles | Given EX-Vault access code 6574 | -9/Exiles | Opened EX-Vault 6593 | -9/Exiles | Found AWS/Gauss 6599 | -9/Exiles | Found YOLO Cannon 6646 | -9/Exiles | Warned to stay clear of 0b10 Research branches 6856 | -9/Exiles | Attacked by the Exiles 6967 | -9/Exiles | Core integrity fell below 20% 6982 | -9/Exiles | Destroyed 8R-AWN 7011 | -9/Exiles | Lost 4 parts (1p2n1u) 7011 | -9/Exiles | Found Prototype Device 7011 | -9/Exiles | Identified AS-neutralizer No. 17b 7019 | -9/Exiles | Found Prototype Ballistic Gun 7163 | -9/Exiles | Identified 8R-AWN's Boregun 7458 | -9/Exiles | Destroyed EX-HEX 7476 | -9/Exiles | Destroyed EX-BIN 7524 | -9/Exiles | Destroyed EX-DEC 7800 | -9/Exiles | Found Deploy-a-Sentry 7807 | -9/Exiles | Found Prototype Energy Gun 7807 | -9/Exiles | Identified AWS/EX-DEC 8249 | -9/Exiles | Left Exiles lab with Deploy-a-Sentry 8249 | -9/Exiles | Entered Mines 8301 | -8/Mines | Discovered new exit (range 6) 8329 | -8/Mines | Entered Materials 8329 | -8/Materials | Evolved 2 slots: Utility x2 8330 | -8/Materials | Identified exit to Storage 8839 | -8/Materials | Discovered new exit (range 13) 9404 | -8/Materials | Discovered new exit (range 10) 9929 | -8/Materials | First assault squad dispatched 9937 | -8/Materials | Entered Storage 10627 | -8/Storage | Repaired Broken Rnf. Fission Core 11303 | -8/Storage | Core integrity fell below 50% 11457 | -8/Storage | Met a pair of Derelict thieves 11565 | -8/Storage | DAS Turret deployed 12199 | -8/Storage | Core integrity fell below 20% 12266 | -8/Storage | Discovered new exit (range 16) 12431 | -8/Storage | Entered Factory 12431 | -7/Factory | Evolved 2 slots: Propulsion x1, Utility x1 12669 | -7/Factory | Discovered new exit (range 12) 12754 | -7/Factory | Discovered new exit (range 12) 13222 | -7/Factory | Fabricated Adv. Signal Interpreter (x2) 13832 | -7/Factory | Discovered new exit (range 14) 14447 | -7/Factory | Identified exit to Lower Caves 14710 | -7/Factory | Garrison activated, responded to threat 14861 | -7/Factory | Discovered new exit (range 3) 15171 | -7/Factory | Identified exit to Factory 16043 | -7/Factory | Discovered exit to Factory (range 5) 16831 | -7/Factory | First assault squad dispatched 17324 | -7/Factory | Garrison activated, responded to threat 17500 | -7/Factory | Entered Lower Caves 18300 | -7/Lower Caves | Spotted UP-Y3B(f) 18302 | -7/Lower Caves | Encountered a Master Thief 18308 | -7/Lower Caves | 8R-AWN's Boregun stolen by Master Thief 18463 | -7/Lower Caves | Attracted the attention of an 0b10 checkpoint 18520 | -7/Lower Caves | Core integrity fell below 50% 18595 | -7/Lower Caves | Spotted NM-6KI(f) 18597 | -7/Lower Caves | Encountered a Master Thief 18597 | -7/Lower Caves | Spotted YN-ALG(f) 18598 | -7/Lower Caves | Encountered a Master Thief 18605 | -7/Lower Caves | Adv. Core Analyzer stolen by Master Thief 18608 | -7/Lower Caves | Adv. Weapon Cycler stolen by Master Thief 18631 | -7/Lower Caves | Self-destructed Last Messages --------------- 18525_ Flak Gun destroyed. 18527_ VTOL Module fries itself beyond repair. 18530_ System corrupted: Heat flow error (+260). 18531_ Critical hit. 18532_ S-27 Virus destroyed. 18533_ VTOL Module fries itself beyond repair. 18533_ Adv. Treads destroyed. 18534_ VTOL Module fries itself beyond repair. 18537_ Overheating: Energy bleed (-22). 18538_ S-27 Virus destroyed. 18539_ Autogun fries itself beyond repair. 18544_ Acquired 20 matter. 18546_ Acquired 23 matter. 18548_ Acquired 27 matter. 18549_ System corrupted: Matter fused (-7). 18549_ VTOL Module fries itself beyond repair. 18591_ System corrupted: Component data lost. 18605_ Adv. Core Analyzer stolen. 18608_ Adv. Weapon Cycler stolen. 18609_ System corrupted: Component data lost. Map ----- +----------------------------------------------------+ | ?????????????????????????????????????????????????? | | ?????????????????????????????????????????????????? | | ?????????????????????????????????????????????????? | | ?????????????????????????????????????????????????? | | ?????????????????????????????????????????????????? | | ?????????????????????????????????????????????????? | | ?????????????????????????????????????????????????? | | ?????????????????????????????????????????????????? | | ?????????????????????????????????????????????????? | | ?????????????????????????????????????????????????? | | ?????????????????????????????????????????????????? | | ?????????????????????????????????????????????????? | | ?????????????????????????????????????????????????? | | ?????????????????????????????????????????????????? | | ?????????????????????????????????????????????????? | | ?????????????????????????????????????????????????? | | ?????????????????????????????????????????????????? | | ?????????????????????????????????????????????????? | | ?????????????????????????????????????????????????? | | ?????????????????????????????????????????????????? | | ?????????????????????????????????????????????????? | | ?????????????????????????????????????????????????? | | ???????????????????????????####?????#######??????? | | ??????????????????????###### #####?# ##?????? | | ?????????????????????## ##? #?????? | | ?????????????????????# @ #?# #?????? | | ?????????????????????# #?# #?????? | | ?????????????????????#### ##?# #????## | | ????????????????????????# ## #???# #??## | | ????????????????????????# #### ##??# #### | | ????????????????????????# ##### #??# ## | | ????????????????????????#### #### ## | | ??????????????????????????# | | ????????????????????# # | | ????????????????????# ## ####### | | ???????????????????# #??#######?????# # | | ??????????????????# ????????????????## # | | ??????????????????? ???????????????????## # | | ???????????????????? ?????????????????????# | | ?????????????????????????????????????????## | | ?????????????????????????????????????????# | | ????????????????????????????????????????## | | ????????????????????????????????????????# | | ???????????????????????????????????????# | | ??????????????????????????????????????# = | | ?????????????????????????????????????# =% | | ????????????????????????????????????# * | | ????????????????????????????????????## ## | | ?????????????????????????????????????## ?# | | ??????????????????????????????????????# ?# ### | +----------------------------------------------------+ Best States ------------- Heat Dissipation 34 Energy Generation 18 Energy Capacity 310 Matter Stores 300 Matter Capacity 300 Sight Range 16 Robot Scan Range 20 Terrain Scan Range 16 Terrain Scan Density 10 Armor Coverage 600 Resistance: EM 20 Evasion (%) 44 Target Analysis 6 Recoil Reduction 3 Offensive Hacking 20 Defensive Hacking 10 Item Schematics ----------------- Lrg. Storage Unit | -10/Materials | Hacked Cmb. Airjet | -9/Materials | Scanalyzed Med. Storage Unit | -9/Materials | Scanalyzed Hcp. Storage Unit | -9/Materials | Hacked Adv. Component Analysis Suite | -8/Materials | Scanalyzed Gravmag Array | -8/Materials | Scanalyzed Corruption Screen | -8/Materials | Scanalyzed Hvy. Armor Plating | -8/Storage | Hacked Adv. Signal Interpreter | -8/Storage | Hacked Adv. Terrain Scanner | -8/Storage | Hacked Cold Fusion Reactor | -7/Factory | Scanalyzed Arm. Medium Treads | -7/Factory | Hacked Robot Schematics ------------------ G-34 Mercenary | -10/Materials | Hacked Fabricated ------------ Adv. Signal Interpreter | x2 | -7/Factory Alien Tech Used ----------------- None Achievements -------------- None Challenges ------------ None Game ------ Seed HeavyPowerDrive Manual? 0 Play Time 01:57:09 Cumulative 245.7 hours Start 2020.10.21 @ 11:47:02 End 2020.10.21 @ 15:50:05 Sessions 9 Manual Loads 0 Difficulty Rogue Special Mode None Game No. 258 Rogue 258 Adventurer 0 Explorer 0 Win Type - Total 2 Types 2/0/0/0/0/0/0/0/0 Lore% 62 Gallery% 77 Achievement% 58 Wizard Run 0 Options --------- ASCII 0 Keyboard 0 Movement Numpad Keybinds 0 Fullscreen 2 Font 24/Terminus Map View 76x50 Tactical HUD 1 Map Filters NONE Filters NONE Steam 1 RUN: 8d077f41-ce14-4aca-b825-1e066ee3368e